bitfinex/quotes_BTCUSD_20240719
["timestamp","ask_amount","ask_price","bid_price","bid_amount"]
[1721372663980,2.67885208,64237.0,64236.0,7.95879052]
[1721372664199,2.54012085,64237.0,64236.0,7.95879052]
[1721372664561,2.54012085,64237.0,64236.0,7.94007266]
[1721372664761,2.6470882,64237.0,64236.0,7.82655266]
[1721372664963,3.4068992,64237.0,64236.0,7.80955266]
[1721372665194,3.3760682,64237.0,64236.0,7.80955266]
[1721372665389,3.6374152,64237.0,64236.0,7.80955266]
[1721372665618,3.6005552,64237.0,64236.0,7.80955266]
[1721372665995,3.49358785,64237.0,64236.0,7.80955266]
[1721372666196,4.06630631,64237.0,64236.0,7.80955266]
[1721372666406,3.21487416,64237.0,64236.0,7.78751366]
[1721372666610,2.53804716,64237.0,64236.0,7.78751366]
[1721372667229,2.84939416,64237.0,64236.0,7.78751366]
[1721372667431,3.00549942,64237.0,64236.0,7.78751366]
[1721372667639,2.64415242,64237.0,64236.0,7.78751366]
[1721372667831,2.48804716,64237.0,64236.0,7.78751366]
[1721372668236,1.98804716,64237.0,64236.0,7.78751366]
[1721372668414,2.14415242,64237.0,64236.0,7.78751366]
[1721372668621,2.64415242,64237.0,64236.0,7.78751366]
[1721372668897,2.70635605,64237.0,64236.0,7.78751366]
[1721372669350,2.60116736,64237.0,64236.0,7.73895367]
[1721372670274,2.60116736,64237.0,64236.0,7.72686867]
[1721372671118,2.60116736,64237.0,64236.0,7.68926867]
[1721372671318,2.75551693,64237.0,64236.0,7.59068867]
[1721372671906,2.91251436,64237.0,64236.0,7.43108069]
[1721372672114,3.33300736,64237.0,64236.0,7.39994569]
[1721372672316,3.33300736,64237.0,64236.0,7.36778579]
[1721372672521,3.33300736,64237.0,64236.0,7.3324497]
[1721372672752,4.62312803,64237.0,64236.0,7.2864497]
[1721372672956,3.47293669,64237.0,64236.0,7.2390497]
[1721372673138,3.47293669,64237.0,64236.0,7.2296329]
[1721372673338,3.48693669,64237.0,64236.0,7.1316729]
[1721372673680,3.45893669,64237.0,64236.0,7.122338]
[1721372673884,3.47293669,64237.0,64236.0,7.122338]
[1721372674136,3.48693669,64237.0,64236.0,7.122338]
[1721372674353,5.76543669,64237.0,64236.0,7.122338]
[1721372674563,4.03893669,64237.0,64236.0,7.122338]
[1721372674768,3.47293669,64237.0,64236.0,7.122338]
[1721372675146,3.48693669,64237.0,64236.0,7.122338]
[1721372675568,3.48693669,64237.0,64236.0,7.093198]
[1721372675904,3.48653152,64237.0,64236.0,7.093198]
[1721372676133,3.20691278,64237.0,64236.0,0.00538406]
[1721372677547,1.451147,64233.0,64232.0,7.071199]
[1721372677755,1.84023158,64233.0,64232.0,7.071199]
[1721372679080,1.84049181,64233.0,64232.0,7.071199]
[1721372679286,1.85449112,64233.0,64232.0,7.071199]
[1721372679504,1.85449112,64233.0,64232.0,6.974045]
[1721372679686,4.13299112,64233.0,64232.0,6.868525]
[1721372679888,4.14699112,64233.0,64232.0,6.868525]
[1721372681572,2.26299112,64233.0,64232.0,6.868525]
[1721372682338,2.21371837,64233.0,64232.0,6.868525]
[1721372682542,2.2637184,64233.0,64232.0,6.84443592]
[1721372685224,2.2637184,64233.0,64232.0,6.84830884]
[1721372685674,2.26491162,64233.0,64232.0,6.84830884]
[1721372686076,2.21491162,64233.0,64232.0,6.84830884]
[1721372686395,2.32041162,64233.0,64232.0,6.84830884]
[1721372686581,3.02641162,64233.0,64232.0,6.84830884]
[1721372687442,3.70441162,64233.0,64232.0,6.84830884]
[1721372687648,3.46270473,64233.0,64232.0,6.99000884]
[1721372687867,1.68420473,64233.0,64232.0,6.99000884]
[1721372688684,1.07032185,64233.0,64232.0,6.99000884]
[1721372688835,1.68577038,64233.0,64232.0,6.99000884]
[1721372689039,1.70877038,64233.0,64232.0,6.99000884]
[1721372689405,2.02013638,64233.0,64232.0,6.99000884]
[1721372690308,2.02013638,64233.0,64232.0,6.74795885]
[1721372690514,2.22654033,64233.0,64232.0,6.74795885]
[1721372690722,1.95468785,64233.0,64232.0,6.74795885]
[1721372690934,2.33270701,64233.0,64232.0,6.74795885]
[1721372691132,2.33270701,64233.0,64232.0,6.74887185]
[1721372691406,2.33353701,64233.0,64232.0,6.74887185]
[1721372691771,2.38353701,64233.0,64232.0,6.74887185]
[1721372691974,2.33301087,64233.0,64232.0,6.74887185]
[1721372692409,2.02164489,64233.0,64232.0,6.74887185]
[1721372693013,2.33301089,64233.0,64232.0,6.74887185]
[1721372693649,3.12201089,64233.0,64232.0,6.74887185]
[1721372693849,3.12201089,64233.0,64232.0,6.73287186]
[1721372694441,3.13804097,64233.0,64232.0,6.73287186]
[1721372695044,3.09765521,64233.0,64232.0,6.68410186]
[1721372695214,3.13903772,64233.0,64232.0,6.68410186]
[1721372695420,2.81164164,64233.0,64232.0,6.68410186]
[1721372696532,2.82767155,64233.0,64232.0,6.68410186]
[1721372696946,2.82767155,64233.0,64232.0,6.63378186]
[1721372697116,2.03867155,64233.0,64232.0,6.63378186]
[1721372697274,2.35003755,64233.0,64232.0,6.63378186]
[1721372697674,2.03867155,64233.0,64232.0,6.63378186]
[1721372698329,2.16264419,64233.0,64232.0,6.63378186]
[1721372698507,2.23906669,64233.0,64232.0,6.63378186]
[1721372700332,2.39546434,64233.0,64232.0,6.63378186]
[1721372700537,2.39546111,64233.0,64232.0,6.63378186]
[1721372700940,2.16279239,64233.0,64232.0,6.63378186]
[1721372701122,2.39574283,64233.0,64232.0,6.63378186]
[1721372702764,2.23935405,64233.0,64232.0,6.54176399]
[1721372703557,2.22332414,64233.0,64232.0,6.54176399]
[1721372703983,2.22400166,64233.0,64232.0,6.54176399]
[1721372705030,2.22400166,64233.0,64232.0,6.39062327]
[1721372705242,2.72814245,64233.0,64232.0,6.26922427]
[1721372705471,2.52584255,64233.0,64232.0,6.40772427]
[1721372705721,1.90311055,64233.0,64232.0,6.40772427]
[1721372706759,1.88911055,64233.0,64232.0,6.40772427]
[1721372707026,2.18647655,64233.0,64232.0,6.40772427]
[1721372707186,1.8880519,64233.0,64232.0,6.40772427]
[1721372707388,1.7134179,64233.0,64232.0,6.40772427]
[1721372707726,1.7134179,64233.0,64232.0,6.26922427]
[1721372707727,1.79059269,64233.0,64232.0,6.26922427]
[1721372708465,2.13264226,64233.0,64232.0,6.26922427]
[1721372708660,2.44400826,64233.0,64232.0,6.26922427]
[1721372709095,2.72664026,64233.0,64232.0,6.26922427]
[1721372709293,2.71264026,64233.0,64232.0,6.26922427]
[1721372709498,2.57229069,64233.0,64232.0,6.26922427]
[1721372709898,2.4451159,64233.0,64232.0,6.26922427]
[1721372710097,2.3017309,64233.0,64232.0,6.26922427]
[1721372710397,2.31547622,64233.0,64232.0,6.26922427]
[1721372710531,2.32947622,64233.0,64232.0,6.26922427]
[1721372710954,1.88041022,64233.0,64232.0,6.26922427]
[1721372711278,2.19016322,64233.0,64232.0,6.26922427]
[1721372711490,2.19016322,64233.0,64232.0,6.41422427]
[1721372711713,1.69016322,64233.0,64232.0,6.41422427]
[1721372711924,2.19016322,64233.0,64232.0,6.41422427]
[1721372712131,2.32915575,64233.0,64232.0,6.41422427]
[1721372712377,0.63937475,64233.0,64232.0,6.41422427]
[1721372712590,0.49362507,64233.0,64232.0,6.41422427]
[1721372712836,0.42413158,64233.0,64232.0,6.41422427]
[1721372713051,0.49362368,64233.0,64232.0,6.41422427]
[1721372713250,0.42413158,64233.0,64232.0,6.41422427]
[1721372713462,0.39606053,64233.0,64232.0,6.41422427]
[1721372713691,0.41006053,64233.0,64232.0,6.41422427]
[1721372713899,0.42406053,64233.0,64232.0,6.41422427]
[1721372714118,0.41006053,64233.0,64232.0,6.41422427]
[1721372714525,0.41506053,64233.0,64232.0,6.41422427]
[1721372714741,0.43806053,64233.0,64232.0,6.41422427]
[1721372714969,0.42406053,64233.0,64232.0,6.41422427]
[1721372715187,0.52406053,64233.0,64232.0,6.41422427]
[1721372715401,0.53306053,64233.0,64232.0,6.41422427]
[1721372715601,0.68874353,64233.0,64232.0,6.41422427]
[1721372716382,0.53306053,64233.0,64232.0,6.41422427]
[1721372716589,0.53267898,64233.0,64232.0,6.41422427]
[1721372719350,0.31483,64233.0,64232.0,6.41422427]
[1721372719526,0.21483,64233.0,64232.0,6.93128027]
[1721372719706,0.21483,64233.0,64232.0,7.55402227]
[1721372719903,0.06493,64233.0,64232.0,7.55402227]
[1721372720109,0.00083,64240.0,64239.0,0.467005]
[1721372720313,0.00083,64240.0,64239.0,0.562205]
[1721372720552,0.00083,64240.0,64239.0,0.87723985]
[1721372720766,0.00083,64240.0,64239.0,1.18857685]
[1721372720970,0.00083,64240.0,64239.0,0.87723985]
[1721372721531,0.00083,64240.0,64239.0,1.18857685]
[1721372721740,0.00183,64240.0,64239.0,1.18857685]
[1721372723032,0.00183,64240.0,64239.0,1.19457685]
[1721372723432,0.00283,64240.0,64239.0,1.19657685]
[1721372724114,0.00383,64240.0,64239.0,1.19857685]
[1721372724289,0.00383,64240.0,64239.0,0.10889785]
[1721372724489,0.02483,64240.0,64239.0,0.10489785]
[1721372724917,0.00083,64240.0,64239.0,0.09889785]
[1721372725323,0.00183,64240.0,64239.0,0.10489785]
[1721372725707,0.00283,64240.0,64239.0,0.10689785]
[1721372726714,0.00283,64240.0,64239.0,0.57390285]
[1721372727147,0.00183,64240.0,64239.0,0.56790285]
[1721372727353,0.00083,64240.0,64239.0,0.56590285]
[1721372727550,0.00183,64240.0,64239.0,0.57190285]
[1721372727903,0.00183,64240.0,64239.0,0.88323985]
[1721372728697,0.00183,64240.0,64239.0,0.57290285]
[1721372731258,0.00183,64240.0,64239.0,0.93423985]
[1721372731478,0.00183,64240.0,64239.0,0.88423985]
[1721372732420,0.00183,64240.0,64239.0,0.57290285]
[1721372732705,0.00183,64240.0,64239.0,0.88423985]
[1721372733711,0.00183,64240.0,64239.0,0.57290285]
[1721372737230,0.00183,64240.0,64239.0,0.06189785]
[1721372742376,0.00183,64240.0,64239.0,0.21756585]
[1721372744577,0.00183,64240.0,64239.0,0.52890285]
[1721372746772,0.00183,64240.0,64239.0,0.90263985]
[1721372750147,0.00183,64240.0,64239.0,0.92664555]
[1721372750350,0.00183,64240.0,64239.0,0.61530855]
[1721372751274,0.00183,64240.0,64239.0,0.55290855]
[1721372755001,0.00183,64240.0,64239.0,0.03470355]
[1721372755391,0.00183,64240.0,64239.0,0.19037155]
[1721372758848,0.00183,64240.0,64239.0,0.50170855]
[1721372759049,0.00183,64240.0,64239.0,0.81304555]
[1721372759226,0.00183,64240.0,64239.0,0.93714555]
[1721372760057,0.00183,64240.0,64239.0,1.24848255]
[1721372761117,0.00183,64240.0,64239.0,0.87474555]
[1721372761317,0.00183,64240.0,64239.0,0.19037155]
[1721372761518,0.02483,64240.0,64239.0,0.03470355]
[1721372763135,0.02483,64240.0,64239.0,0.19037155]
[1721372763513,0.02483,64240.0,64239.0,0.50170855]
[1721372763715,0.00183,64240.0,64239.0,0.50170855]
[1721372765179,0.00183,64240.0,64239.0,0.56740855]
[1721372765371,0.00183,64240.0,64239.0,0.62980855]
[1721372765577,0.00183,64240.0,64239.0,0.94114555]
[1721372767192,0.00183,64240.0,64239.0,0.87874555]
[1721372770011,0.00183,64240.0,64239.0,0.50170855]
[1721372770427,0.02483,64240.0,64239.0,0.50170855]
[1721372774378,0.02483,64240.0,64239.0,0.47770285]
[1721372774900,0.02483,64240.0,64239.0,0.01069785]
[1721372775288,0.02483,64240.0,64239.0,0.16636585]
[1721372777187,0.024298,64240.0,64239.0,0.16636585]
[1721372777512,0.024298,64240.0,64239.0,0.03526931]
[1721372777513,0.06613691,64240.0,64239.0,0.03526931]
[1721372777711,0.06613691,64240.0,64239.0,0.03447087]
[1721372778371,0.06613691,64240.0,64239.0,0.19068742]
[1721372779506,0.06613691,64240.0,64239.0,0.03501942]
[1721372779946,0.06613691,64240.0,64239.0,0.03781342]
[1721372780190,0.06623949,64240.0,64239.0,0.03781342]
[1721372781705,0.22190549,64240.0,64239.0,0.03501942]
[1721372781925,0.06623949,64240.0,64239.0,0.03501942]
[1721372782110,0.06623949,64240.0,64239.0,0.03157146]
[1721372783446,0.20609906,64240.0,64239.0,0.03157146]
[1721372784617,1.2388108,64240.0,64239.0,0.03157146]
[1721372784838,1.5501428,64240.0,64239.0,0.03157146]
[1721372785081,1.62681839,64240.0,64239.0,0.03157146]
[1721372785286,1.5501428,64240.0,64239.0,0.03057146]
[1721372785493,1.5491428,64240.0,64239.0,0.02457146]
[1721372785819,1.5541428,64240.0,64239.0,0.02457146]
[1721372786019,0.15568,64234.0,64233.0,0.000913]
[1721372786250,0.8291238,64234.0,64233.0,0.0254156]
[1721372786447,0.78782274,64234.0,64233.0,0.0254156]
[1721372786654,0.89974546,64234.0,64233.0,0.0254156]
[1721372787501,0.83011695,64234.0,64233.0,0.0254156]
[1721372788131,0.36307595,64234.0,64233.0,0.0254156]
[1721372788360,0.023298,64240.0,64238.0,0.15567]
[1721372788489,0.023298,64240.0,64239.0,0.158462]
[1721372788693,0.010298,64240.0,64239.0,0.1801706]
[1721372788915,0.010298,64240.0,64239.0,0.5549076]
[1721372789306,0.000298,64240.0,64239.0,0.2435706]
[1721372789511,0.009298,64240.0,64239.0,0.24668345]
[1721372789764,0.009298,64240.0,64239.0,0.0245026]
[1721372789967,0.023298,64240.0,64238.0,0.02442313]
[1721372790138,0.002298,64240.0,64239.0,0.002794]
[1721372790344,0.002298,64240.0,64237.0,0.02721713]
[1721372790544,0.04219676,64239.0,64237.0,0.158467]
[1721372790744,0.023,64238.0,64237.0,0.469814]
[1721372791000,0.002298,64240.0,64239.0,0.155668]
[1721372791112,0.008298,64240.0,64239.0,0.18109113]
[1721372791313,0.031298,64240.0,64239.0,0.18109113]
[1721372791512,0.023298,64240.0,64239.0,0.18009113]
[1721372791717,0.000298,64240.0,64239.0,0.18009113]
[1721372792556,0.44814574,64240.0,64239.0,0.02442313]
[1721372792762,0.51919653,64240.0,64239.0,0.02542313]
[1721372792935,0.51919812,64240.0,64239.0,0.02542313]
[1721372793140,0.36353212,64240.0,64239.0,0.02542313]
[1721372796199,0.36203585,64240.0,64239.0,0.02542313]
[1721372798329,0.36203585,64240.0,64239.0,0.02888418]
[1721372799030,0.3618363,64240.0,64239.0,0.02888418]
[1721372799336,0.32147974,64240.0,64239.0,0.02542313]
[1721372799541,0.3618376,64240.0,64239.0,0.02542313]
[1721372800911,0.3618376,64240.0,64239.0,0.0288809]
[1721372801117,0.07165586,64240.0,64239.0,0.3402179]
[1721372801348,0.07165586,64240.0,64239.0,0.8072229]
[1721372801551,0.031298,64240.0,64239.0,0.8072229]
[1721372804109,0.03111064,64240.0,64239.0,0.8072229]
[1721372804839,0.17901064,64240.0,64239.0,0.8072229]
[1721372805077,0.17901064,64240.0,64239.0,0.4958859]
[1721372805858,0.17901064,64240.0,64239.0,0.47146277]
[1721372807691,0.17901064,64240.0,64239.0,0.00445777]
[1721372808032,0.17901064,64240.0,64239.0,0.02871712]
[1721372808863,0.21997867,64240.0,64239.0,0.02525935]
[1721372809079,0.21997867,64240.0,64239.0,0.02871607]
[1721372809303,0.37436041,64240.0,64239.0,0.02871607]
[1721372809721,0.37436041,64240.0,64239.0,0.02525935]
[1721372810115,0.37436041,64240.0,64239.0,0.02871607]
[1721372811262,0.37432942,64240.0,64239.0,0.02871607]
[1721372811485,0.33339238,64240.0,64239.0,0.02525935]
[1721372811693,0.37432922,64240.0,64239.0,0.02525935]
[1721372812590,0.33339238,64240.0,64239.0,0.02525935]
[1721372812784,0.3743866,64240.0,64239.0,0.02525935]
[1721372813204,0.8413846,64240.0,64239.0,0.02525935]
[1721372813406,0.9413846,64240.0,64239.0,0.02525935]
[1721372813610,1.5640486,64240.0,64239.0,0.02525935]
[1721372813810,1.96149834,64240.0,64239.0,0.02525935]
[1721372814188,1.95549834,64240.0,64239.0,0.02425935]
[1721372814395,0.29618,64234.0,64233.0,0.000913]
[1721372814592,1.23727796,64234.0,64233.0,0.02453441]
[1721372814794,1.54863896,64234.0,64233.0,0.02785582]
[1721372815370,1.66460649,64234.0,64233.0,0.02785582]
[1721372815572,1.50764474,64234.0,64233.0,0.02785582]
[1721372815804,1.66458027,64234.0,64233.0,0.02785582]
[1721372816609,1.54860799,64234.0,64233.0,0.02785582]
[1721372816996,1.56060799,64234.0,64233.0,0.02785582]
[1721372817562,1.56960799,64234.0,64233.0,0.02785582]
[1721372818500,1.68550553,64234.0,64233.0,0.02785582]
[1721372818701,2.12360503,64234.0,64233.0,0.02785582]
[1721372818903,1.92864474,64234.0,64233.0,0.02453441]
[1721372819107,2.04657331,64234.0,64233.0,0.02453441]
[1721372819724,2.03757331,64234.0,64233.0,0.02453441]
[1721372820063,2.05157331,64234.0,64233.0,0.02453441]
[1721372820221,2.03957331,64234.0,64233.0,0.02453441]
[1721372820937,2.05357331,64234.0,64233.0,0.02453441]
[1721372821345,2.06859728,64234.0,64233.0,0.02453441]
[1721372822255,1.99142861,64234.0,64233.0,0.02453441]
[1721372822599,2.0686034,64234.0,64233.0,0.02453441]
[1721372823705,2.18438775,64234.0,64233.0,0.02453441]
[1721372824546,2.18519008,64234.0,64233.0,0.02453441]
[1721372825361,2.10801529,64234.0,64233.0,0.02453441]
[1721372826218,1.99224862,64234.0,64233.0,0.02453441]
[1721372826449,1.75032852,64234.0,64233.0,0.02453441]
[1721372827052,1.75032852,64234.0,64233.0,0.02732841]
[1721372827255,1.68088762,64234.0,64233.0,0.02732841]
[1721372827590,1.63828374,64234.0,64233.0,0.02732841]
[1721372827794,1.68160831,64234.0,64233.0,0.02732841]
[1721372828205,1.68160831,64234.0,64233.0,0.02453441]
[1721372828412,1.68160831,64234.0,64233.0,0.02732841]
[1721372831023,1.6816525,64234.0,64233.0,0.02732841]
[1721372831613,1.68156766,64234.0,64233.0,0.02732841]
[1721372832024,1.37020666,64234.0,64233.0,0.02732841]
[1721372832269,0.41706566,64234.0,64233.0,0.02732841]
[1721372832600,0.41706566,64234.0,64233.0,0.03067719]
[1721372832809,0.19638174,64234.0,64233.0,0.03067719]
[1721372833788,0.18238174,64234.0,64233.0,0.03067719]
[1721372834079,0.28238174,64234.0,64233.0,0.03067719]
[1721372834281,0.31638174,64234.0,64233.0,0.03067719]
[1721372835294,0.3594756,64234.0,64233.0,0.03067719]
[1721372836738,0.3314756,64234.0,64233.0,0.03067719]
[1721372837142,0.3454756,64234.0,64233.0,0.03067719]
[1721372837554,0.30238174,64234.0,64233.0,0.03067719]
[1721372837750,0.34536734,64234.0,64233.0,0.03067719]
[1721372839595,0.49046734,64234.0,64233.0,0.03067719]
[1721372839834,0.64614734,64234.0,64233.0,0.03067719]
[1721372840557,1.26886934,64234.0,64233.0,0.03067719]
[1721372840761,1.5802227,64234.0,64233.0,0.02788319]
[1721372841720,1.64968566,64234.0,64233.0,0.02788319]
[1721372841946,1.75130083,64234.0,64233.0,0.02788319]
[1721372842136,1.75128954,64234.0,64233.0,0.02788319]
[1721372842334,2.08581616,64234.0,64233.0,0.02648154]
[1721372842550,1.225381,64233.0,64232.0,6.19361289]
[1721372842888,1.91256755,64233.0,64232.0,6.21677723]
[1721372843291,1.96256755,64233.0,64232.0,6.21677723]
[1721372843692,1.93556755,64233.0,64232.0,6.21677723]
[1721372843922,1.93589541,64233.0,64232.0,6.21677723]
[1721372844246,1.94989541,64233.0,64232.0,6.21677723]
[1721372844417,1.96389541,64233.0,64232.0,6.21677723]
[1721372844831,1.96389541,64233.0,64232.0,6.20359528]
[1721372845388,1.96389541,64233.0,64232.0,6.18043094]
[1721372846140,0.868157,64233.0,64232.0,6.18043094]
[1721372846342,1.179523,64233.0,64232.0,6.18043094]
[1721372846549,0.481291,64233.0,64232.0,6.18043094]
[1721372846874,0.18238174,64233.0,64232.0,6.18043094]
[1721372847077,0.19869227,64233.0,64232.0,6.18043094]
[1721372847279,0.22193603,64233.0,64232.0,6.18043094]
[1721372847483,0.23593603,64233.0,64232.0,6.18043094]
[1721372847687,0.22193603,64233.0,64232.0,6.18043094]
[1721372848152,0.38861903,64233.0,64232.0,6.18043094]
[1721372848400,1.55096433,64233.0,64232.0,6.18043094]
[1721372848610,1.48671703,64233.0,64232.0,6.18043094]
[1721372848828,1.17535103,64233.0,64232.0,6.18043094]
[1721372849026,1.19835103,64233.0,64232.0,6.18043094]
[1721372849578,1.18435103,64233.0,64232.0,6.18043094]
[1721372850143,1.1530405,64233.0,64232.0,6.18349784]
[1721372850271,1.19742683,64233.0,64232.0,6.18349784]
[1721372850490,1.58889283,64233.0,64232.0,6.18349784]
[1721372851218,1.65837687,64233.0,64232.0,6.18349784]
[1721372852401,1.58889283,64233.0,64232.0,6.18349784]
[1721372852944,1.65839416,64233.0,64232.0,6.18349784]
[1721372853172,1.34702816,64233.0,64232.0,6.18349784]
[1721372853290,1.30264469,64233.0,64232.0,6.18349784]
[1721372853502,1.58835906,64233.0,64232.0,6.18349784]
[1721372853867,1.78338405,64233.0,64232.0,6.18349784]
[1721372854568,1.66751853,64233.0,64232.0,6.18349784]
[1721372855963,1.66681034,64233.0,64232.0,6.18349784]
[1721372856536,1.5445065,64233.0,64232.0,6.18349784]
[1721372856707,1.66755043,64233.0,64232.0,6.18349784]
[1721372858678,1.8066683,64233.0,64232.0,6.18349784]
[1721372863137,1.97891643,64233.0,64232.0,6.09183016]
[1721372864019,2.04130643,64233.0,64232.0,6.09183016]
[1721372864482,2.03030643,64233.0,64232.0,6.09183016]
[1721372864848,2.04430643,64233.0,64232.0,6.09183016]
[1721372865028,2.03130643,64233.0,64232.0,6.09183016]
[1721372866426,2.04611982,64233.0,64232.0,6.09183016]
[1721372867033,2.03211982,64233.0,64232.0,6.09183016]
[1721372868162,1.72075382,64233.0,64232.0,6.09183016]
[1721372868528,1.79756735,64233.0,64232.0,6.09183016]
[1721372868728,1.66746735,64233.0,64232.0,6.09183016]
[1721372868886,1.52826382,64233.0,64232.0,6.09183016]
[1721372869673,1.52786434,64233.0,64232.0,6.09183016]
[1721372869895,1.52786434,64233.0,64232.0,6.06711106]
[1721372870185,1.66707308,64233.0,64232.0,6.06711106]
[1721372870586,1.52786434,64233.0,64232.0,6.06711106]
[1721372871447,1.80547308,64233.0,64232.0,5.97391106]
[1721372871581,1.85547308,64233.0,64232.0,5.97391106]
[1721372871787,1.74798607,64233.0,64232.0,5.97391106]
[1721372871988,2.05935207,64233.0,64232.0,5.97391106]
[1721372872403,1.9050025,64233.0,64232.0,5.97391106]
[1721372874584,1.9050025,64233.0,64232.0,5.94992106]
[1721372874585,3.0120025,64233.0,64232.0,5.94992106]
[1721372874807,3.0120025,64233.0,64232.0,5.92592106]
[1721372875776,3.13306479,64233.0,64232.0,5.92592106]
[1721372877775,3.08306479,64233.0,64232.0,5.92592106]
[1721372877974,3.13306479,64233.0,64232.0,5.92592106]
[1721372878404,3.09021293,64233.0,64232.0,5.92592106]
[1721372878967,3.0120025,64233.0,64232.0,5.92592106]
[1721372879192,3.13216357,64233.0,64232.0,5.92592106]
[1721372879287,3.0120025,64233.0,64232.0,5.92592106]
[1721372879888,3.13250345,64233.0,64232.0,5.92592106]
[1721372881513,3.08250345,64233.0,64232.0,5.92592106]
[1721372881856,3.13250345,64233.0,64232.0,5.92592106]
[1721372882770,3.0120025,64233.0,64232.0,5.92592106]
[1721372883070,3.13267846,64233.0,64232.0,5.92592106]
[1721372883597,3.13267846,64233.0,64232.0,5.88456206]
[1721372884059,3.08267846,64233.0,64232.0,5.88456206]
[1721372884492,3.13267846,64233.0,64232.0,5.88456206]
[1721372886693,3.08267846,64233.0,64232.0,5.88456206]
[1721372887104,3.02157846,64233.0,64232.0,5.88456206]
[1721372887837,2.60991246,64233.0,64232.0,5.88456206]
[1721372888190,2.75011246,64233.0,64232.0,5.88456206]
[1721372888406,3.06147846,64233.0,64232.0,5.88456206]
[1721372889195,3.08447846,64233.0,64232.0,5.88456206]
[1721372889603,3.08561803,64233.0,64232.0,5.88456206]
[1721372890664,3.08561803,64233.0,64232.0,5.80218306]
[1721372892791,3.08497962,64233.0,64232.0,5.80218306]
[1721372892949,3.08497962,64233.0,64232.0,5.76001306]
[1721372895753,3.02197962,64233.0,64232.0,5.76001306]
[1721372895964,2.63341362,64233.0,64232.0,5.76001306]
[1721372896167,2.63246254,64233.0,64232.0,5.76001306]
[1721372896368,2.94382854,64233.0,64232.0,5.76001306]
[1721372896537,3.10059146,64233.0,64232.0,5.76001306]
[1721372896745,3.17999146,64233.0,64232.0,5.76001306]
[1721372897937,3.24619146,64233.0,64232.0,5.69868306]
[1721372898249,3.08942854,64233.0,64232.0,5.69868306]
[1721372899353,3.08944649,64233.0,64232.0,5.69868306]
[1721372900702,3.08944649,64233.0,64232.0,5.66742879]
[1721372901851,3.08944649,64233.0,64232.0,5.61898879]
[1721372902745,4.41949249,64233.0,64232.0,4.30974246]
[1721372902910,5.16325049,64233.0,64232.0,3.89385065]
[1721372903115,5.16325049,64233.0,64232.0,3.75630719]
[1721372903116,4.76875049,64233.0,64232.0,3.75630719]
[1721372903318,4.7848134,64233.0,64232.0,3.47655419]
[1721372903520,5.25052897,64233.0,64232.0,2.95185869]
[1721372903738,8.23207769,64233.0,64232.0,2.60390918]
[1721372903895,8.31906311,64233.0,64232.0,2.59458682]
[1721372904094,8.31906311,64233.0,64232.0,2.55758682]
[1721372904300,8.31906311,64233.0,64232.0,2.54666421]
[1721372904526,8.31906311,64233.0,64232.0,2.51552721]
[1721372904800,8.47576845,64233.0,64232.0,2.37930921]
[1721372904999,8.32141888,64233.0,64232.0,2.37930921]
[1721372905253,8.32141888,64233.0,64232.0,2.37624231]
[1721372905456,8.32141888,64233.0,64232.0,2.33340831]
[1721372905718,8.32141888,64233.0,64232.0,2.19897031]
[1721372905719,8.34275388,64233.0,64232.0,2.19897031]
[1721372905920,8.32875388,64233.0,64232.0,2.19897031]
[1721372906053,8.48310345,64233.0,64232.0,2.09401031]
[1721372906264,8.49807652,64233.0,64232.0,2.09401031]
[1721372906498,8.49807652,64233.0,64232.0,2.00059931]
[1721372906499,8.72610901,64233.0,64232.0,2.00059931]
[1721372906669,8.57175944,64233.0,64232.0,1.93832531]
[1721372907314,8.58575944,64233.0,64232.0,1.83496369]
[1721372907464,8.58575944,64233.0,64232.0,1.77268969]
[1721372907805,8.58575944,64233.0,64232.0,1.70143469]
[1721372908135,8.58575944,64233.0,64232.0,1.63916069]
[1721372908317,8.58575944,64233.0,64232.0,1.59393069]
[1721372908484,8.74010901,64233.0,64232.0,1.50051969]
[1721372908693,8.74010901,64233.0,64232.0,1.39544369]
[1721372908867,8.59841346,64233.0,64232.0,1.39544369]
[1721372909092,8.59841346,64233.0,64232.0,1.38554369]
[1721372909093,8.73930096,64233.0,64232.0,1.38554369]
[1721372909270,8.73930096,64233.0,64232.0,1.31854369]
[1721372909470,8.51138503,64233.0,64232.0,1.23615765]
[1721372909673,8.16212703,64233.0,64232.0,1.12118665]
[1721372909920,12.05483303,64233.0,64232.0,1.12118665]
[1721372910115,12.05483303,64233.0,64232.0,1.1014713]
[1721372910357,12.05483303,64233.0,64232.0,1.0703343]
[1721372910716,12.05483303,64233.0,64232.0,0.51747289]
[1721372911060,12.28264485,64233.0,64232.0,0.47739807]
[1721372911233,12.05483303,64233.0,64232.0,0.34650807]
[1721372911474,12.28259193,64233.0,64232.0,0.21509107]
[1721372911700,12.28259193,64233.0,64232.0,0.15117239]
[1721372911934,12.28259193,64233.0,64189.0,0.009174]
[1721372911935,0.855755,64203.0,64189.0,0.009174]
[1721372912137,1.167325,64195.0,64189.0,0.009174]
[1721372912320,2.06086965,64195.0,64194.0,0.00730451]
[1721372912524,0.7789,64193.0,64189.0,0.009174]
[1721372912728,1.81388824,64193.0,64189.0,0.009174]
[1721372912975,2.04123781,64193.0,64189.0,0.009174]
[1721372913122,2.41889781,64193.0,64192.0,1e-06]
[1721372913341,3.3450644,64193.0,64192.0,1e-06]
[1721372913563,3.36308619,64193.0,64192.0,1e-06]
[1721372913768,2.44838468,64193.0,64192.0,1e-06]
[1721372913944,2.39838468,64193.0,64192.0,1e-06]
[1721372914147,2.25960419,64193.0,64192.0,1e-06]
[1721372914415,2.30960419,64193.0,64192.0,1e-06]
[1721372914816,2.25960419,64193.0,64192.0,1e-06]
[1721372915024,2.30960419,64193.0,64192.0,1e-06]
[1721372915196,2.2358109,64193.0,64192.0,1e-06]
[1721372915410,2.15141506,64193.0,64192.0,1e-06]
[1721372915557,2.24373009,64193.0,64192.0,1e-06]
[1721372915761,2.15141506,64193.0,64192.0,1e-06]
[1721372916007,2.16541506,64193.0,64192.0,1e-06]
[1721372916421,2.11541506,64193.0,64192.0,1e-06]
[1721372916576,2.13412243,64193.0,64192.0,1e-06]
[1721372917497,2.18412243,64193.0,64192.0,1e-06]
[1721372917809,2.19812243,64193.0,64192.0,1e-06]
[1721372918212,2.18205952,64193.0,64192.0,1e-06]
[1721372918411,2.28453454,64193.0,64192.0,1e-06]
[1721372918810,2.24700796,64193.0,64192.0,1e-06]
[1721372919433,2.60208876,64193.0,64192.0,1e-06]
[1721372920025,2.29052876,64193.0,64192.0,1e-06]
[1721372920391,2.29063725,64193.0,64192.0,1e-06]
[1721372920824,2.60219725,64193.0,64192.0,1e-06]
[1721372921023,2.24711645,64193.0,64192.0,1e-06]
[1721372921586,2.0336164,64193.0,64192.0,1e-06]
[1721372921788,2.08570385,64193.0,64192.0,1e-06]
[1721372922342,2.09218305,64193.0,64192.0,1e-06]
[1721372922544,2.01418305,64193.0,64192.0,1e-06]